lending/lending_fUSD_20250131
["ID","MTS","AMOUNT","RATE_DAILY","PERIOD"]
[351091109,1738330268068,-500.0,0.0001726,2]
[351091110,1738330268077,-860.21,0.0001726,2]
[351091111,1738330268087,-992.97,0.0001726,2]
[351091112,1738330268096,-987.07,0.0001726,2]
[351091113,1738330268106,-756.61,0.0001726,2]
[351091114,1738330268115,-664.58,0.0001726,2]
[351091115,1738330268125,-502.19,0.0001726,2]
[351091116,1738330268135,-1951.73,0.0001726,2]
[351091117,1738330268144,-630.67,0.0001726,2]
[351091118,1738330268153,-915.53,0.0001726,2]
[351091119,1738330268163,-500.0,0.0001726,2]
[351091120,1738330268172,-637.45,0.0001726,2]
[351091121,1738330268182,-619.59011713,0.0001726,2]
[351091122,1738330268192,-500.0,0.0001726,2]
[351091123,1738330268205,-1177.21,0.0001726,2]
[351091124,1738330268215,-1804.68,0.0001726,2]
[351091125,1738330268224,-2725.19,0.0001726,2]
[351091126,1738330268233,-1925.39,0.0001726,2]
[351091127,1738330268243,-2309.95,0.0001726,2]
[351091128,1738330268252,-1862.18,0.0001726,2]
[351091129,1738330268262,-780.22,0.0001726,2]
[351091130,1738330268272,-977.44,0.0001726,2]
[351091131,1738330268281,-1774.6,0.0001726,2]
[351091132,1738330268291,-991.11,0.0001726,2]
[351091133,1738330268302,-1285.72,0.0001726,2]
[351091134,1738330268312,-500.0,0.0001726,2]
[351091135,1738330268322,-1845.86,0.0001726,2]
[351091136,1738330268331,-500.0,0.0001726,2]
[351091137,1738330268340,-1408.31,0.0001726,2]
[351091138,1738330268350,-1126.86,0.0001726,2]
[351091139,1738330268360,-1863.64,0.0001726,2]
[351091140,1738330268370,-2837.3,0.0001726,2]
[351091141,1738330268380,-3575.8,0.0001726,2]
[351091142,1738330268389,-980.91,0.0001726,2]
[351091143,1738330268399,-2345.02,0.0001726,2]
[351091144,1738330268408,-710.22,0.0001726,2]
[351091145,1738330268418,-3520.76,0.0001726,2]
[351091146,1738330268428,-6700.13,0.0001726,2]
[351091147,1738330268438,-547.17,0.0001726,2]
[351091148,1738330268450,-500.0,0.0001726,2]
[351091149,1738330268459,-1788.65,0.0001726,2]
[351091150,1738330268469,-500.0,0.0001726,2]
[351091151,1738330268479,-156.521245,0.0001726,2]
[351091152,1738330268489,-2184.0,0.0001726,2]
[351091153,1738330268499,-1475.22,0.0001726,2]
[351091154,1738330268508,-1421.48,0.0001726,2]
[351091155,1738330268518,-1714.53,0.0001726,2]
[351091156,1738330268527,-5708.97,0.0001726,2]
[351091157,1738330268539,-970.99,0.0001726,2]
[351091158,1738330268548,-1202.06,0.0001726,2]
[351091159,1738330268558,-706.33,0.0001726,2]
[351091160,1738330268568,-151.0,0.0001726,2]
[351091161,1738330268578,-560.35,0.0001726,2]
[351091162,1738330268588,-500.0,0.0001726,2]
[351091163,1738330268597,-721.8,0.0001726,2]
[351091164,1738330268607,-3593.68,0.0001726,2]
[351091165,1738330268618,-3176.65,0.0001726,2]
[351091166,1738330268628,-1388.69,0.0001726,2]
[351091167,1738330268638,-6333.8,0.0001726,2]
[351091168,1738330268647,-3896.66,0.0001726,2]
[351091169,1738330268656,-4983.19,0.0001726,2]
[351091170,1738330268666,-151.0,0.0001726,2]
[351091171,1738330268675,-806.85,0.0001726,2]
[351091172,1738330268684,-2323.16,0.0001726,2]
[351091173,1738330268695,-500.0,0.0001726,2]
[351091174,1738330268706,-3058.4,0.0001726,2]
[351091175,1738330268715,-5624.37,0.0001726,2]
[351091176,1738330268725,-1642.11,0.0001726,2]
[351091177,1738330268734,-3233.65,0.0001726,2]
[351091178,1738330268743,-2404.98,0.0001726,2]
[351091179,1738330268754,-624.31006151,0.0001726,2]
[351091180,1738330268765,-1835.72,0.0001726,2]
[351091181,1738330268774,-1960.06,0.0001726,2]
[351091182,1738330268784,-500.0,0.0001726,2]
[351091183,1738330268794,-5138.96,0.0001726,2]
[351091184,1738330268803,-1039.18,0.0001726,2]
[351091185,1738330268813,-930.69,0.0001726,2]
[351091186,1738330268822,-6256.88,0.0001726,2]
[351091187,1738330268831,-2029.44,0.0001726,2]
[351091188,1738330268840,-533.32,0.0001726,2]
[351091189,1738330268850,-500.0,0.0001726,2]
[351091190,1738330268861,-500.0,0.0001726,2]
[351091191,1738330268872,-5102.8,0.0001726,2]
[351091192,1738330268882,-2497.8,0.0001726,2]
[351091193,1738330268893,-500.0,0.0001726,2]
[351091194,1738330268903,-500.0,0.0001726,2]
[351091195,1738330268912,-787.65,0.0001726,2]
[351091196,1738330268922,-6171.09,0.0001726,2]
[351091197,1738330268931,-509.52,0.0001726,2]
[351091198,1738330268941,-2405.42,0.0001726,2]
[351091199,1738330268951,-547.19,0.0001726,2]
[351091200,1738330268961,-825.38,0.0001726,2]
[351091201,1738330268971,-500.0,0.0001726,2]
[351091202,1738330268982,-1388.58,0.0001726,2]
[351091203,1738330268991,-1907.72,0.0001726,2]
[351091204,1738330269001,-500.0,0.0001726,2]
[351091205,1738330269010,-647.17,0.0001726,2]
[351091206,1738330269020,-500.0,0.0001726,2]
[351091207,1738330269030,-1179.41,0.0001726,2]
[351091208,1738330269040,-1000.0,0.00017266,4]
[351091209,1738330269050,-500.0,0.00017298,2]
[351091210,1738330269060,-500.0,0.000173,2]
[351091211,1738330269069,-190.74008483,0.00017311,2]
[351091212,1738330269079,-500.08731339,0.00017311,2]
[351091213,1738330269089,-175.21,0.00017342,2]
[351091214,1738330269099,-502.0,0.0001737,2]
[351091215,1738330269109,-544.6,0.00017387,2]
[351091216,1738330269119,-798.88,0.00017387,2]
[351091217,1738330269129,-500.0,0.00017396,2]
[351091218,1738330269139,-500.0,0.00017396,2]
[351091219,1738330269148,-500.0,0.00017396,2]
[351091220,1738330269158,-500.0,0.00017396,2]
[351091221,1738330269167,-500.0,0.00017396,2]
[351091222,1738330269177,-500.0,0.00017396,2]
[351091223,1738330269187,-500.0,0.00017396,2]
[351091224,1738330269198,-500.0,0.00017396,2]
[351091225,1738330269207,-500.0,0.00017396,2]
[351091226,1738330269217,-500.0,0.00017396,2]
[351091227,1738330269227,-647.45,0.00017396,2]
[351091228,1738330269236,-500.0,0.00017396,2]
[351091229,1738330269246,-500.0,0.00017396,2]
[351091230,1738330269256,-500.0,0.00017396,2]
[351091231,1738330269265,-533.58,0.00017396,2]
[351091232,1738330269275,-500.0,0.00017396,2]
[351091233,1738330269284,-500.0,0.00017396,2]
[351091234,1738330269294,-921.76,0.00017396,2]
[351091235,1738330269303,-500.0,0.00017396,2]
[351091236,1738330269313,-554.28,0.00017396,2]
[351091237,1738330269322,-500.0,0.00017396,2]
[351091238,1738330269331,-500.0,0.00017396,2]
[351091239,1738330269341,-535.26,0.00017396,2]
[351091240,1738330269351,-500.0,0.00017396,2]
[351091241,1738330269361,-500.0,0.00017396,2]
[351091242,1738330269370,-500.0,0.00017396,2]
[351091243,1738330269381,-500.0,0.00017396,2]
[351091244,1738330269391,-548.31,0.00017396,2]
[351091245,1738330269401,-500.0,0.00017396,2]
[351091246,1738330269411,-500.0,0.00017396,2]
[351091247,1738330269421,-504.97,0.00017396,2]
[351091248,1738330269431,-500.0,0.00017396,2]
[351091249,1738330269441,-500.0,0.00017396,2]
[351091250,1738330269452,-500.0,0.00017396,2]
[351091251,1738330269461,-500.0,0.00017396,2]
[351091252,1738330269472,-500.0,0.00017396,2]
[351091253,1738330269483,-477.79257661,0.00017396,2]
[351091254,1738330269493,-672.19,0.00017396,2]
[351091255,1738330269503,-500.0,0.00017396,2]
[351091256,1738330269513,-500.0,0.00017396,2]
[351091257,1738330269524,-500.0,0.00017396,2]
[351091258,1738330269536,-718.71,0.00017396,2]
[351091259,1738330269547,-500.0,0.00017396,2]
[351091260,1738330269557,-500.0,0.00017396,2]
[351091261,1738330269567,-500.0,0.00017396,2]
[351091262,1738330269577,-500.0,0.00017396,2]
[351091263,1738330269587,-500.0,0.00017396,2]
[351091264,1738330269597,-500.0,0.00017396,2]
[351091265,1738330269608,-3437.57,0.00017396,2]
[351091266,1738330269619,-527.97,0.00017396,2]
[351091267,1738330269629,-1958.17,0.00017396,2]
[351091268,1738330269639,-500.0,0.00017396,2]
[351091269,1738330269649,-1086.27,0.00017396,2]
[351091270,1738330269659,-500.0,0.00017396,2]
[351091271,1738330269669,-500.0,0.00017396,2]
[351091272,1738330269680,-508.42,0.00017396,2]
[351091273,1738330269690,-524.07908889,0.00017396,2]
[351091274,1738330269702,-2213.4,0.00017396,2]
[351091275,1738330269711,-500.0,0.00017396,2]
[351091276,1738330269721,-750.16,0.00017396,2]
[351091277,1738330269731,-1214.4,0.00017396,2]
[351091278,1738330269741,-1648.29,0.00017396,2]
[351091279,1738330269751,-535.09,0.00017396,2]
[351091280,1738330269760,-1054.03,0.00017396,2]
[351091281,1738330269770,-151.0,0.00017396,2]
[351091282,1738330269780,-151.0,0.00017396,2]
[351091283,1738330269790,-1696.88,0.00017396,2]
[351091284,1738330269800,-500.0,0.00017396,2]
[351091285,1738330269810,-913.79,0.00017396,2]
[351091286,1738330269820,-798.88,0.00017396,2]
[351091287,1738330269830,-500.0,0.00017396,2]
[351091288,1738330269840,-887.86,0.00017396,2]
[351091289,1738330269850,-308.575692,0.00017396,2]
[351091290,1738330269860,-1548.0,0.00017396,2]
[351091291,1738330269875,-308.575692,0.00017396,2]
[351091292,1738330269889,-500.0,0.00017396,2]
[351091293,1738330269898,-777.96,0.00017396,2]
[351091294,1738330269908,-1988.47,0.00017396,2]
[351091295,1738330269917,-500.0,0.00017396,2]
[351091296,1738330269927,-500.0,0.00017396,2]
[351091297,1738330269937,-2656.93,0.00017396,2]
[351091298,1738330269948,-500.0,0.00017396,2]
[351091299,1738330269958,-2337.51,0.00017396,2]
[351091300,1738330269968,-4645.5,0.00017396,2]
[351091301,1738330269977,-500.0,0.00017396,2]
[351091302,1738330269987,-10518.3,0.00017396,2]
[351091303,1738330269997,-500.0,0.00017396,2]
[351091304,1738330270007,-500.0,0.00017396,2]
[351091305,1738330270016,-500.0,0.00017396,2]
[351091306,1738330270026,-1506.86,0.00017396,2]
[351091307,1738330270036,-878.68,0.00017396,2]
[351091308,1738330270046,-946.4,0.00017397,2]
[351091309,1738330270055,-283.85628348,0.00017397,2]
[351091310,1738330270066,-585.38,0.00017397,2]
[351091311,1738330270080,-501.6,0.00017397,2]
[351091312,1738330270089,-492.38374745,0.00017397,2]
[351091313,1738330270099,-500.0,0.00017397,2]
[351091314,1738330270109,-500.0,0.00017397,2]
[351091315,1738330270118,-500.0,0.00017397,2]
[351091316,1738330270127,-500.0,0.00017397,2]
[351091317,1738330270137,-500.0,0.00017397,2]
[351091318,1738330270146,-1050.63,0.00017397,2]
[351091319,1738330270156,-2526.07,0.00017397,2]
[351091320,1738330270165,-500.0,0.00017397,2]
[351091321,1738330270175,-500.0,0.00017397,2]
[351091322,1738330270184,-708.56,0.00017397,2]
[351091323,1738330270194,-268.94526832,0.00017397,2]
[351091324,1738330270205,-553.27956364,0.00017397,2]
[351091325,1738330270215,-928.97,0.00017397,2]
[351091326,1738330270224,-1010.68,0.00017397,2]
[351091327,1738330270235,-660.51,0.00017397,2]
[351091328,1738330270245,-764.61,0.00017397,2]
[351091329,1738330270255,-823.51,0.00017397,2]
[351091330,1738330270265,-596.38,0.00017397,2]
[351091331,1738330270275,-500.0,0.00017397,2]
[351091332,1738330270285,-1181.6,0.00017397,2]
[351091333,1738330270294,-500.0,0.00017397,2]
[351091334,1738330270306,-1755.36,0.00017397,2]
[351091335,1738330270315,-774.61,0.00017397,2]
[351091336,1738330270325,-691.43,0.00017397,2]
[351091337,1738330270336,-945.59,0.00017397,2]
[351091338,1738330270346,-500.0,0.00017397,2]
[351091339,1738330270356,-678.94,0.00017397,2]
[351091340,1738330270366,-500.0,0.00017397,2]
[351091341,1738330270376,-502.29,0.00017397,2]
[351091342,1738330270386,-1393.13,0.00017397,2]
[351091343,1738330270397,-1153.02,0.00017397,2]
[351091344,1738330270408,-684.77,0.00017397,2]
[351091345,1738330270418,-796.76,0.00017397,2]
[351091346,1738330270427,-732.31,0.00017397,2]
[351091347,1738330270438,-500.0,0.00017397,2]
[351091348,1738330270449,-500.0,0.00017397,2]
[351091349,1738330270459,-768.25,0.00017397,2]
[351091350,1738330270469,-1222.29,0.00017397,2]
[351091351,1738330270479,-500.0,0.00017397,2]
[351091352,1738330270490,-1062.2,0.00017397,2]
[351091353,1738330270504,-500.0,0.00017397,2]
[351091354,1738330270515,-649.99,0.00017397,2]
[351091355,1738330270525,-672.57,0.00017397,2]
[351091356,1738330270539,-707.49,0.00017397,2]
[351091357,1738330270549,-668.38,0.00017397,2]
[351091358,1738330270559,-500.0,0.00017397,2]
[351091359,1738330270569,-552.78,0.00017397,2]
[351091360,1738330270580,-655.08,0.00017397,2]
[351091361,1738330270590,-853.48,0.00017397,2]
[351091362,1738330270600,-543.67,0.00017397,2]
[351091363,1738330270610,-810.58,0.00017397,2]
[351091364,1738330270621,-500.0,0.00017397,2]
[351091365,1738330270631,-553.86,0.00017397,2]
[351091366,1738330270641,-500.0,0.00017397,2]
[351091367,1738330270650,-500.0,0.00017397,2]
[351091368,1738330270660,-618.0,0.00017397,2]
[351091369,1738330270669,-500.0,0.00017397,2]
[351091370,1738330270678,-611.55,0.00017397,2]
[351091371,1738330270688,-500.0,0.00017397,2]
[351091372,1738330270698,-780.11,0.00017397,2]
[351091373,1738330270708,-1177.028054,0.00017397,2]
[351091374,1738330270717,-569.96,0.00017397,2]
[351091375,1738330270727,-667.09,0.00017397,2]
[351091376,1738330270737,-500.0,0.00017397,2]
[351091377,1738330270747,-906.03,0.00017397,2]
[351091378,1738330270757,-528.42,0.00017397,2]
[351091379,1738330270766,-500.0,0.00017397,2]
[351091380,1738330270776,-576.51,0.00017397,2]
[351091381,1738330270785,-1111.52,0.00017397,2]
[351091382,1738330270795,-1040.51,0.00017397,2]
[351091383,1738330270805,-500.0,0.00017397,2]
[351091384,1738330270814,-817.512057,0.00017397,2]
[351091385,1738330270824,-558.66,0.00017397,2]
[351091386,1738330270833,-500.0,0.00017397,2]
[351091387,1738330270843,-749.14,0.00017397,2]
[351091388,1738330270853,-1177.09,0.00017397,2]
[351091389,1738330270862,-500.0,0.00017397,2]
[351091390,1738330270872,-500.0,0.00017397,2]
[351091391,1738330270881,-617.77,0.00017397,2]
[351091392,1738330270891,-500.0,0.00017397,2]
[351091393,1738330270901,-323.66702339,0.00017397,2]
[351091394,1738330270912,-500.0,0.00017397,2]
[351091395,1738330270922,-896.66,0.00017397,2]
[351091396,1738330270932,-1019.41,0.00017397,2]
[351091397,1738330270941,-547.39521278,0.00017397,2]
[351091398,1738330270951,-787.85,0.00017397,2]
[351091399,1738330270961,-500.0,0.00017397,2]
[351091400,1738330270971,-749.64,0.00017397,2]
[351091401,1738330270981,-599.93,0.00017397,2]
[351091402,1738330270991,-595.18,0.00017397,2]
[351091403,1738330271001,-557.9,0.00017397,2]
[351091404,1738330271011,-159.99587354,0.00017397,2]
[351091405,1738330271020,-500.0,0.00017397,2]
[351091406,1738330271029,-658.91,0.00017397,2]
[351091407,1738330271039,-599.3,0.00017397,2]
[351091408,1738330271049,-590.44,0.00017397,2]
[351091409,1738330271058,-633.02,0.00017397,2]
[351091410,1738330271068,-500.0,0.00017397,2]
[351091411,1738330271078,-500.0,0.00017397,2]
[351091412,1738330271088,-722.92,0.00017397,2]
[351091413,1738330271097,-500.0,0.00017397,2]
[351091414,1738330271107,-1091.9,0.00017397,2]
[351091415,1738330271116,-813.36,0.00017397,2]
[351091416,1738330271126,-501.67,0.00017397,2]
[351091417,1738330271135,-1147.13,0.00017397,2]
[351091418,1738330271145,-500.0,0.00017397,2]
[351091419,1738330271154,-665.96,0.00017397,2]
[351091420,1738330271164,-500.0,0.00017397,2]
[351091421,1738330271174,-500.0,0.00017397,2]
[351091422,1738330271183,-899.19,0.00017397,2]
[351091423,1738330271193,-1174.92,0.00017397,2]
[351091424,1738330271204,-668.92,0.00017397,2]
[351091425,1738330271213,-912.48,0.00017397,2]
[351091426,1738330271223,-1476.07,0.00017397,2]
[351091427,1738330271232,-153.065871,0.00017397,2]
[351091428,1738330271243,-648.91,0.00017397,2]
[351091429,1738330271261,-650.58,0.00017397,2]
[351091430,1738330271271,-2128.17,0.00017397,2]
[351091431,1738330271282,-500.0,0.00017397,2]
[351091432,1738330271291,-689.56,0.00017397,2]
[351091433,1738330271302,-971.49,0.00017397,2]
[351091434,1738330271312,-820.44,0.00017397,2]
[351091435,1738330271321,-2443.42,0.00017397,2]
[351091436,1738330271331,-1597.55,0.00017397,2]
[351091437,1738330271341,-1387.33,0.00017397,2]
[351091438,1738330271641,-928.42,0.00017397,2]
[351091439,1738330271663,-151.0,0.00017397,2]
[351091440,1738330271672,-500.0,0.00017397,2]
[351091441,1738330271682,-500.0,0.00017397,2]
[351091442,1738330271692,-2195.25,0.00017397,2]
[351091443,1738330271701,-693.9,0.00017397,2]
[351091444,1738330271711,-872.91,0.00017397,2]
[351091445,1738330271720,-10802.73,0.00017397,2]
[351091446,1738330271730,-1041.55,0.00017397,2]
[351091447,1738330271740,-616.99,0.00017397,2]
[351091448,1738330271750,-777.0,0.00017397,2]
[351091449,1738330271759,-2383.8997873,0.00017397,2]
[351091450,1738330272094,-35.5102127,0.00017397,2]
[351091451,1738330272104,-1574.18,0.00017397,2]
[351091452,1738330272114,-1389.39,0.00017397,2]
[351091453,1738330272124,-1164.06,0.00017397,2]
[351091454,1738330272133,-892.74,0.00017397,2]
[351091455,1738330272142,-151.0,0.00017397,2]
[351091456,1738330272151,-683.62,0.00017397,2]
[351091457,1738330272160,-1428.06,0.00017397,2]
[351091458,1738330272170,-1479.4,0.00017397,2]
[351091459,1738330272180,-500.0,0.00017397,2]
[351091460,1738330272190,-943.18078729,0.00017397,2]
[351091461,1738330272205,-11.86921271,0.00017397,2]
[351091462,1738330272216,-151.0,0.00017397,2]
[351091463,1738330272227,-788.97,0.00017397,2]
[351091464,1738330272237,-1032.5,0.00017397,2]
[351091465,1738330272248,-788.4,0.00017397,2]
[351091466,1738330272259,-1050.99218729,0.00017397,2]
[351091467,1738330272272,-230.17781271,0.00017397,2]
[351091468,1738330272283,-599.37,0.00017397,2]
[351091469,1738330272294,-1774.15,0.00017397,2]
[351091470,1738330272305,-853.36,0.00017397,2]
[351091471,1738330272316,-665.64,0.00017397,2]
[351091472,1738330272327,-151.0,0.00017397,2]
[351091473,1738330272338,-692.58,0.00017397,2]
[351091474,1738330272349,-151.0,0.00017397,2]
[351091475,1738330272359,-4499.05,0.00017397,2]
[351091476,1738330272369,-151.0,0.00017397,2]
[351091477,1738330272379,-2204.99,0.00017397,2]
[351091478,1738330272389,-500.0,0.00017397,2]
[351091479,1738330272400,-1244.32,0.00017397,2]
[351091480,1738330272410,-500.0,0.00017397,2]
[351091481,1738330272419,-338.0055526,0.00017397,2]
[351091482,1738330272431,-594.75253321,0.00017397,2]
[351091483,1738330272463,-517.24630142,0.00016438,2]
[351091484,1738330272476,-504.53369858,0.00016438,2]
[351091485,1738330272485,-4741.78,0.00016849,2]
[351091486,1738330272496,-1165.58,0.0001726,2]
[351091487,1738330272505,-1288.63191419,0.00017397,2]
[351091488,1738330272516,-582.68,0.00017397,2]
[351091489,1738330272526,-151.0,0.00017397,2]
[351091490,1738330272536,-151.0,0.00017397,2]
[351091491,1738330272548,-1029.05,0.00017397,2]
[351091492,1738330272557,-1011.4,0.00017397,2]
[351091493,1738330272567,-1376.47,0.00017397,2]
[351091494,1738330272577,-4123.97,0.00017397,2]
[351091495,1738330272587,-1294.35,0.00017397,2]
[351091496,1738330272597,-902.32,0.00017397,2]
[351091497,1738330272606,-847.74,0.00017397,2]
[351091498,1738330272616,-533.87,0.00017397,2]
[351091499,1738330272626,-2673.95,0.00017397,2]
[351091500,1738330272635,-153.065871,0.00017397,2]
[351091501,1738330272644,-3729.53,0.00017397,2]
[351091502,1738330272653,-1251.69,0.00017397,2]
[351091503,1738330272663,-500.0,0.00017397,2]
[351091504,1738330272672,-860.21,0.00017397,2]
[351091505,1738330272681,-992.97,0.00017397,2]
[351091506,1738330272691,-987.07,0.00017397,2]
[351091507,1738330272704,-756.61,0.00017397,2]
[351091508,1738330272714,-664.58,0.00017397,2]
[351091509,1738330272723,-502.19,0.00017397,2]
[351091510,1738330272733,-1951.73,0.00017397,2]
[351091511,1738330272742,-630.67,0.00017397,2]
[351091512,1738330272751,-915.53,0.00017397,2]
[351091513,1738330272761,-500.0,0.00017397,2]
[351091514,1738330272770,-637.45,0.00017397,2]
[351091515,1738330272779,-500.0,0.00017397,2]
[351091516,1738330272789,-840.23078024,0.00017397,2]
[351091517,1738330272801,-336.97921976,0.00017397,2]
[351091518,1738330272810,-1183.02078024,0.00017397,2]
[351091519,1738330272827,-621.65921976,0.00017397,2]
[351091520,1738330272837,-2725.19,0.00017397,2]
[351091521,1738330272846,-1925.39,0.00017397,2]
[351091522,1738330272856,-2309.95,0.00017397,2]
[351091523,1738330272866,-1862.18,0.00017397,2]
[351091524,1738330272875,-780.22,0.00017397,2]
[351091525,1738330272885,-977.44,0.00017397,2]
[351091526,1738330272894,-1774.6,0.00017397,2]
[351091527,1738330272904,-991.11,0.00017397,2]
[351091528,1738330272914,-10.81416904,0.00017397,2]
[351091529,1738330272926,-1274.90583096,0.00017397,2]
[351091530,1738330272936,-500.0,0.00017397,2]
[351091531,1738330272946,-1845.86,0.00017397,2]
[351091532,1738330272959,-1408.31,0.00017397,2]
[351091533,1738330272968,-500.0,0.00017397,2]
[351091534,1738330272977,-1126.86,0.00017397,2]
[351091535,1738330272987,-323.24818092,0.00017397,2]
[351091536,1738330273010,-500.0,0.00016574,2]
[351091537,1738330273020,-1540.39181908,0.00017397,2]
[351091538,1738330273029,-2837.3,0.00017397,2]
[351091539,1738330273039,-3575.8,0.00017397,2]
[351091540,1738330273048,-980.91,0.00017397,2]
[351091541,1738330273058,-2345.02,0.00017397,2]
[351091542,1738330273067,-113.30089671,0.00017397,2]
[351091543,1738330273094,-596.91910329,0.00017397,2]
[351091544,1738330273104,-344.62043147,0.00017397,2]
[351091545,1738330273115,-3176.13956853,0.00017397,2]
[351091546,1738330273125,-4623.86043147,0.00017397,2]
[351091547,1738330273550,-500.0,0.00016438,2]
[351091548,1738330273559,-500.0,0.00016574,2]
[351091549,1738330273570,-1021.64,0.00016575,2]
[351091550,1738330273582,-0.14,0.00016575,2]
[351091551,1738330273592,-151.0,0.00016575,2]
[351091552,1738330273601,-500.0,0.00016575,2]
[351091553,1738330273611,-500.0,0.00016711,2]
[351091554,1738330273621,-500.0,0.00016711,2]
[351091555,1738330273630,-1021.78,0.00016712,2]
[351091556,1738330273639,-500.0,0.00016712,2]
[351091557,1738330273649,-1021.78,0.00016849,2]
[351091558,1738330273658,-3134.0998,0.00016986,2]
[351091559,1738330273670,-1607.6802,0.00016986,2]
[351091560,1738330273679,-1021.78,0.00016986,2]
[351091561,1738330273688,-151.0,0.00016986,2]
[351091562,1738330273697,-2335.41809999,0.00017123,2]
[351091563,1738330273725,-574.70909159,0.00017123,2]
[351091564,1738330273737,-1831.65280842,0.00017123,2]
[351091565,1738330273746,-1021.78,0.00017123,2]
[351091566,1738330273755,-4741.78,0.0001726,2]
[351091567,1738330273764,-1021.78,0.0001726,2]
[351091568,1738330273774,-151.0,0.0001726,2]
[351091569,1738330273783,-2076.26956853,0.00017397,2]
[351091570,1738330273792,-547.17,0.00017397,2]
[351091571,1738330273867,-500.0,0.00017397,2]
[351091572,1738330273876,-1788.65,0.00017397,2]
[351091573,1738330273885,-500.0,0.00017397,2]
[351091574,1738330273894,-2184.0,0.00017397,2]
[351091575,1738330273903,-1475.22,0.00017397,2]
[351091576,1738330273912,-1421.48,0.00017397,2]
[351091577,1738330273920,-970.99,0.00017397,2]
[351091578,1738330273929,-5708.97,0.00017397,2]
[351091579,1738330273938,-1714.53,0.00017397,2]
[351091580,1738330273948,-791.08785152,0.00017397,2]
[351091581,1738330273961,-410.97214848,0.00017397,2]
[351091582,1738330273970,-706.33,0.00017397,2]
[351091583,1738330273980,-560.35,0.00017397,2]
[351091584,1738330273989,-500.0,0.00017397,2]
[351091585,1738330273998,-721.8,0.00017397,2]
[351091586,1738330274007,-1318.08800618,0.00017397,2]
[351091587,1738330274019,-1559.31079056,0.00017397,2]
[351091588,1738330274032,-299.25120326,0.00017397,2]
[351091589,1738330274041,-193.95838901,0.00017397,2]
[351091590,1738330274052,-807.70633872,0.00017397,2]
[351091591,1738330274594,-500.0,0.00016438,2]
[351091592,1738330274604,-500.0,0.00016438,2]
[351091593,1738330274613,-500.0,0.00016438,2]
[351091594,1738330274625,-500.0,0.00016574,2]
[351091595,1738330274636,-500.0,0.00016575,2]
[351091596,1738330274646,-500.0,0.00016575,2]
[351091597,1738330274656,-500.0,0.00016575,2]
[351091598,1738330274666,-508.26219261,0.00016711,2]
[351091599,1738330274676,-500.0,0.00016712,2]
[351091600,1738330274686,-500.0,0.00016712,2]
[351091601,1738330274696,-500.0,0.00016849,2]
[351091602,1738330274708,-500.0,0.00016849,2]
[351091603,1738330274718,-500.0,0.00016849,2]
[351091604,1738330274727,-500.0,0.00016986,2]
[351091605,1738330274737,-500.0,0.00016986,2]
[351091606,1738330274746,-500.0,0.00016986,2]
[351091607,1738330274756,-500.0,0.00017123,2]
[351091608,1738330274765,-500.0,0.00017123,2]